Cogmind - Beta 15 @@@ ROGUE MODE // 2025.07.18 @ 19:27:02 Player: EX-OCT Result: Destroyed by S-10 Pest with Light Assault Rifle Performance ------------- Evolutions (0) 0 Regions Visited (2) 400 Robots Destroyed (43) 215 Value Destroyed (1075) 1075 Prototype IDs (12) 240 Alien Tech Used (0) 0 Bonus (0) 0 TOTAL SCORE: 1930 Bonus ------- None Cogmind --------- Core Integrity 0/250 Matter 297/300 Energy 180/200 System Corruption 10% Temperature Cool (0) Movement Rolling (105) Ox1 Location -10/Subcaves Parts ------- > --- POWER (1) -------- Subdweller Power Source > --- PROPULSION (2) --- Armored Wheel Armored Wheel > --- UTILITY (2) ------ Improved Heat Sink Large Storage Unit > --- WEAPON (2) ------- Subdweller Beam Cannon (fused) > --- INVENTORY (15) --- Subdweller Power Source Light Angular Momentum Engine Flight Unit Flight Unit Large Battery (200) Subdweller Optics Gun Armor Scrap Shield Hacking Suite Hacking Suite Hacking Suite Advanced Beam Cannon Grenade Launcher Makeshift Sword Peak State ------------ > --- POWER ------------ Subdweller Power Source > --- PROPULSION ------- Armored Wheel Armored Wheel > --- UTILITY ---------- Improved Heat Sink Large Storage Unit > --- WEAPON ----------- Subdweller Beam Cannon Subdweller Machine Gun > --- INVENTORY -------- Light Angular Momentum Engine Flight Unit Flight Unit Large Battery Subdweller Optics Gun Armor Scrap Shield Hacking Suite Hacking Suite Hacking Suite Advanced Beam Cannon Grenade Launcher Makeshift Sword [Rating: 18] Favorites ----------- Power Subdweller Power Source Engine Subdweller Power Source Propulsion Armored Wheel Treads Light Treads Wheel Armored Wheel Utility Improved Heat Sink Device Improved Heat Sink Storage Large Storage Unit Protection Medium Armor Plating Weapon Advanced Beam Cannon Energy Gun EM Pulse Gun Energy Cannon Advanced Beam Cannon Ballistic Gun Subdweller Machine Gun Build | -11 -10 -10 ------- Run | Yrd Mat Sub Slots Evolved . | . . . Power . | . . . Propulsion . | . . . Utility . | . . . Weapon . | . . . Parts Attached 25 | 6 10 9 Power 3 | 1 . 2 Engine 3 | 1 . 2 Core . | . . . Reactor . | . . . Propulsion 5 | 2 1 2 Treads 2 | 2 . . Leg . | . . . Wheel 3 | . 1 2 Hover . | . . . Flight . | . . . Utility 5 | 1 4 . Device 2 | 1 1 . Storage 2 | . 2 . Processor . | . . . Hackware . | . . . Protection 1 | . 1 . Artifact . | . . . Weapon 12 | 2 5 5 Energy Gun 1 | 1 . . Energy Cannon 9 | . 5 4 Ballistic Gun 2 | 1 . 1 Ballistic Cannon . | . . . Launcher . | . . . Special Weapon . | . . . Impact Weapon . | . . . Slashing Weapon . | . . . Piercing Weapon . | . . . Special Melee Weapon . | . . . Unidentified Prototypes 1 | . 1 . Corrupted Parts 1 | . . 1 System Corruption 7 | . . 7 Parts Lost 7 | . . 7 Power 1 | . . 1 Propulsion 1 | . . 1 Utility . | . . . Weapon 5 | . . 5 Highest Loss Streak 2 | . . 2 To Critical Strikes . | . . . Average Backups 12 | . 9 13 Power . | . . 1 Propulsion 3 | . 4 2 Utility 5 | . 3 6 Weapon 2 | . 2 3 Tool/Special . | . . . Unused Backups 17 | . 1 16 Power 2 | . . 2 Propulsion 3 | . . 3 Utility 9 | . 1 8 Weapon 3 | . . 3 Tool/Special . | . . . Average Slot Usage (%) 99 | . 99 99 Engine 13 | . 14 13 Treads 10 | . 14 9 Wheel 16 | . 13 18 Device 13 | . 12 14 Storage 13 | . 12 14 Energy Cannon 19 | . 27 16 Ballistic Gun 8 | . . 11 Peak Build Rating 18 | 6 16 18 Average Rating 15 | 4 14 16 On Entrance 6 | . 6 14 Naked Turns . | . . . Heaviest Build 38 | 10 34 38 Greatest Support 40 | 40 40 24 Greatest Overweight (x) 3 | . 2 3 Average Overweight (x) 1 | . 1 1 Largest Inventory Capacity 15 | 5 15 15 Average Capacity 13 | 5 11 15 Most Carried 15 | . 15 15 Average Carried 12 | . 9 14 Final Capacity 15 | 5 15 15 Final Carried 15 | . 15 15 Class Distribution -------------------- 100% | Mutant Dominant Class ---------------- Mutant | -10/Materials Mutant | -10/Subcaves Resources | -11 -10 -10 ----------- Run | Yrd Mat Sub Matter Collected 664 | 294 98 272 Remotely . | . . . Salvage Created 1404 | 147 473 784 Parts 102 | 9 48 45 Haulers Intercepted 1 | . 1 . Recyclers Shooed 1 | 1 . . Parts Field Recycled . | . . . Retrieved Matter . | . . . Parts Self-Destructed 9 | . . 9 Prevented . | . . . Kills | -11 -10 -10 ------- Run | Yrd Mat Sub Combat Hostiles Destroyed 33 | . 14 19 Guns 4 | . . 4 Cannons 23 | . 13 10 Classes Destroyed 9 | 2 5 2 Tunneler 3 | 3 . . Hauler 1 | . 1 . Recycler 1 | 1 . . Operator 3 | . 3 . Watcher 2 | . 2 . Swarmer 12 | . 8 4 Grunt 7 | . 6 1 Sentry 1 | . . 1 Subdweller 13 | . . 13 Best Kill Streak 5 | 2 5 3 Combat Bots Only 3 | . 3 3 Max Kills in Single Turn 2 | 1 1 2 Gunslinging . | . . . Exploded . | . . . Melee . | . . . Uniques/NPCs Destroyed . | . . . Combat | -11 -10 -10 -------- Run | Yrd Mat Sub Hostile Shots Fired 131 | . 47 84 Missed 35 | . 12 23 Hits 96 | . 35 61 Projectile 96 | . 35 61 Critical Strikes 3 | . 1 2 Damage Taken 1346 | 18 349 979 Core 259 | 9 49 201 Absorbed by Shields . | . . . Core Remaining (%) 96 | 96 . . Volleys Fired 180 | 15 49 116 Largest 2 | 2 2 2 Hottest 136 | 60 136 112 Shots Fired 260 | 30 79 151 Gun 58 | 30 . 28 Cannon 202 | . 79 123 Launcher . | . . . Special . | . . . Kinetic 43 | 15 . 28 Thermal 156 | . 79 77 Explosive . | . . . Electromagnetic 61 | 15 . 46 Robot Hit Streak 32 | 4 5 32 Robot Miss Streak 3 | 3 2 2 Penetration Max . | . . . Secondary Targets . | . . . Shots Hit Robots 141 | 15 47 79 Core Hits 45 | 3 20 22 Critical Kills 2 | . 1 1 Critical Parts Destroyed . | . . . Critical Strikes 5 | 1 1 3 Meltdown 2 | . 1 1 Corrupt 3 | 1 . 2 Melee Attacks . | . . . Impact . | . . . Slashing . | . . . Piercing . | . . . Sneak Attacks . | . . . Combat Hostiles . | . . . Follow-up Attacks . | . . . Damage Inflicted 2886 | 236 956 1694 Guns 542 | 196 . 346 Cannons 2304 | . 956 1348 Explosions 39 | 39 . . Melee . | . . . Ramming 1 | 1 . . Kinetic 450 | 104 . 346 Thermal 1600 | 39 956 605 Explosive . | . . . Electromagnetic 835 | 92 . 743 Impact . | . . . Slashing . | . . . Piercing . | . . . Highest Corruption 10 | . 3 10 Average Corruption 4 | . 2 4 Corruption Purged . | . . . Corruption Blocked . | . . . Effects 74 | . 15 59 Message Errors 10 | . 3 7 Matter Fused 12 | . 1 11 Heat Flow Errors 10 | . 2 8 Energy Discharges 13 | . 3 10 Parts Fused 2 | . . 2 Data Loss (minor) 14 | . 4 10 Data Loss (major) 5 | . . 5 Alerts 3 | . 1 2 Weapon Failures 5 | . 1 4 Overload Shots . | . . . Overflow Damage 67 | 26 22 19 Projectiles 41 | . 22 19 Explosions 26 | 26 . . Melee . | . . . Knockbacks . | . . . Impact . | . . . Kinetic . | . . . Secondary . | . . . Self-Inflicted Damage 18 | 18 . . Shots 1 | 1 . . Rammed 1 | 1 . . Targets Rammed 1 | 1 . . Kicked . | . . . Crushed . | . . . Highest Temperature 315 | 12 315 250 Average Temperature 76 | 12 76 85 Received Heat Transfer 264 | . 111 153 Siege Activations . | . . . Martial Activations . | . . . Shielding Activations . | . . . Robots Disrupted . | . . . Combat Hostiles . | . . . Robots Corrupted 4 | . . 4 Combat Hostiles 4 | . . 4 Parts Fried 6 | . . 6 Impact Corruptions . | . . . Robots Melted 2 | . 1 1 Combat Hostiles 2 | . 1 1 Parts Melted 6 | . 4 2 Heat Transferred 2640 | 50 1739 851 Parts Sabotaged . | . . . Parts Stolen . | . . . Parts Stripped . | . . . Power Chain Reactions 1 | 1 . . Alert | -11 -10 -10 ------- Run | Yrd Mat Sub Maximum Alert Level 1 | . 1 . Low Security (%) 95 | 100 95 . Level 1 4 | . 4 . Level 2 . | . . . Level 3 . | . . . Level 4 . | . . . Level 5 . | . . . High Security . | . . . Max Security . | . . . Peak Influence 216 | 10 216 . Initial . | . . . Average 83 | 1 91 . Influence Increases 633 | 20 463 150 Destroy 0b10 Robot/C 400 | . 280 120 Destroy 0b10 Robot/NC 50 | 20 30 . Destroy Leader 66 | . 66 . Successful Hack 26 | . 26 . Disable Machine 45 | . 45 . Destroy Structure 1 | . 1 . Lose Combat Pursuer 45 | . 15 30 Influence Decreases 555 | 20 394 141 Entered New Map 34 | . . 34 Time Decay 501 | 20 394 87 Lost Part 20 | . . 20 Squads Dispatched 2 | . 2 . Investigation . | . . . Extermination . | . . . Reinforcement 2 | . 2 . Assault . | . . . Garrison . | . . . Intercept . | . . . Searches Triggered . | . . . Construction Impeded . | . . . Haulers Reinforced . | . . . Active Scanning Responses . | . . . Cargo Convoy Interrupts . | . . . Stealth | -11 -10 -10 --------- Run | Yrd Mat Sub Distress Signals 2 | . 2 . Communications Jammed . | . . . Distress Signals . | . . . Times Spotted 50 | . 22 28 Peak Tracking Total 6 | . 5 6 Tactical Retreats 2 | . 1 1 Traps | -11 -10 -10 ------- Run | Yrd Mat Sub Traps Triggered 1 | . 1 . Indirectly . | . . . Trap Hack Attempts . | . . . Triggered . | . . . Disarmed . | . . . Reprogrammed . | . . . Reused . | . . . Traps Extracted . | . . . Installed . | . . . Triggered . | . . . Machines | -11 -10 -10 ---------- Run | Yrd Mat Sub Machines Disabled 4 | . 3 1 Max in Single Turn 1 | . 1 1 Machines Repaired . | . . . Machines Dismantled . | . . . Machines Sabotaged . | . . . Overloaded Fab Kills . | . . . Hacking | -11 -10 -10 --------- Run | Yrd Mat Sub Machines Accessed 9 | . 6 3 Terminals 6 | . 6 . Fabricators . | . . . Repair Stations . | . . . Recycling Units . | . . . Scanalyzers . | . . . Garrison Access . | . . . Total Hacks 25 | . 22 3 Successful 15 | . 12 3 Failed 10 | . 10 . Catastrophic . | . . . Database Lockouts . | . . . Manual 21 | . 21 . Terminals 22 | . 22 . Fabricators . | . . . Repair Stations . | . . . Recycling Units . | . . . Scanalyzers . | . . . Garrison Access . | . . . Terminal Hacks 5 | . 2 3 Record 1 | . . 1 Open Door 1 | . . 1 Terminal Index 1 | . 1 . Zone Layout 1 | . 1 . Proto ID Catalog 1 | . . 1 Fabricator Hacks . | . . . Repair Station Hacks . | . . . Recycling Unit Hacks . | . . . Scanalyzer . | . . . Garrison Access Hacks . | . . . Unauthorized Hacks 10 | . 10 . Terminals 10 | . 10 . Botnet 4 | . 4 . Skim 6 | . 6 . Fabricators . | . . . Repair Stations . | . . . Recycling Units . | . . . Scanalyzers . | . . . Garrison Access . | . . . Data Cores Recovered 1 | . 1 . Used . | . . . Hacking Detections 6 | . 6 . Full Trace Events . | . . . Feedback Events . | . . . Feedback Blocked . | . . . Robot Schematics Acquired . | . . . Robots Built . | . . . Authchips . | . . . Time . | . . . Total Robot Build Rating . | . . . Part Schematics Acquired . | . . . Parts Built . | . . . Authchips . | . . . Time . | . . . Total Part Build Rating . | . . . Parts Repaired . | . . . Time . | . . . Parts Recycled . | . . . Recycled Matter . | . . . Retrieved Matter . | . . . Retrieved Components . | . . . Parts Scanalyzed . | . . . Part Schematics Acquired . | . . . Parts Damaged . | . . . Bothacking | -11 -10 -10 ------------ Run | Yrd Mat Sub Used RIF Installer . | . . . Robots Hacked . | . . . Non-combat . | . . . Combat . | . . . Robot Hacks Applied . | . . . Relay Couplers Released . | . . . Fabnet Peak Effective % . | . . . Robots Rewired . | . . . Allies Hacked . | . . . Hacks Repelled . | . . . Allies | -11 -10 -10 -------- Run | Yrd Mat Sub Total Allies . | . . . Largest Group . | . . . Highest-Rated Group . | . . . Highest-Rated Ally . | . . . Total Orders . | . . . Ally Attacks . | . . . Total Damage . | . . . Kills . | . . . Allies Corrupted . | . . . Allies Melted . | . . . Intel | -11 -10 -10 ------- Run | Yrd Mat Sub Active Infowar (turns) 145 | 7 138 . Seismic 145 | 7 138 . Robot Analysis Total . | . . . Derelict Logs Recovered 2 | . . 2 Drone Launches . | . . . Drone Recoveries . | . . . Exploration | -11 -10 -10 ------------- Run | Yrd Mat Sub Turns Passed 3733 | 113 1135 2485 Spaces Moved 2515 | 41 678 1796 Core 6 | 6 . . Treads 44 | 35 9 . Legs . | . . . Wheels 2465 | . 669 1796 Hover . | . . . Flight . | . . . Fastest Speed 50 | 50 105 105 Average Speed 118 | 143 112 119 Slowest Speed 160 | 160 160 135 Overloaded Moves . | . . . Propulsion Burnouts . | . . . Robots Hopped . | . . . Potential Cave-ins . | . . . Cave-ins Triggered . | . . . Exploration Rate (%) 60 | 4 86 91 Regions Visited 2 Branch Regions 1 Pre-discovered Areas 2 | . . 2 Known Exits Taken . | . . . Unknown Exits Taken 2 | 1 1 . Scrap Searched 3 | . . 3 Spaces Dug 6 | . . 6 Terrain Destroyed 9 | 2 . 7 Melee . | . . . Projectile 7 | . . 7 AOE 2 | 2 . . Terrain Rammed . | . . . Walls Destroyed . | . . . Machines Disabled . | . . . Actions | -11 -10 -10 --------- Run | Yrd Mat Sub Total 3008 | 62 971 1975 Wait 235 | . 206 29 Move 2514 | 41 677 1796 Hop . | . . . Pick Up 26 | . 17 9 Fast Attach 20 | 6 9 5 Attach 5 | . . 5 Detach 3 | . 1 2 Swap 4 | . 1 3 Drop 21 | . 11 10 Fire 180 | 15 49 116 Melee . | . . . Ram . | . . . Kick . | . . . Crush . | . . . Escape Stasis . | . . . Rewire . | . . . Trap . | . . . Miscellaneous . | . . . Route ------- -11/Scrapyard -10/Materials (discovered 6 exits: *Mat x3 / [*Min x2] / *Sub) -10/Subcaves (discovered 3 exits: *Mat x2 / [*Rec]) History --------- Turn | Location | Event 6 | -11/Scrapyard | Discovered new exit (range 14) 114 | -11/Scrapyard | Entered Materials 312 | -10/Materials | Build established: Mutant 386 | -10/Materials | Discovered new exit (range 9) 386 | -10/Materials | Discovered new exit (range 8) 558 | -10/Materials | Discovered new exit (range 16) 795 | -10/Materials | Discovered new exit (range 7) 942 | -10/Materials | Identified exit to Materials 982 | -10/Materials | Discovered new exit (range 7) 999 | -10/Materials | Learned location of 2 exits from Subcaves 1046 | -10/Materials | Loaded intel: 1 repair station location 1084 | -10/Materials | Learned 4 Recycling zone layouts 1182 | -10/Materials | Learned Storage machine intel 1249 | -10/Materials | Entered Subcaves 1250 | -10/Subcaves | Approached by a straggling Scientist 1250 | -10/Subcaves | Identified exit to Materials 1303 | -10/Subcaves | Disturbed a concealed Subdweller 1354 | -10/Subcaves | Ambushed by swarm of Subdwellers 1446 | -10/Subcaves | Visited 4L-MR0's lab 1461 | -10/Subcaves | Found Gun Armor 1838 | -10/Subcaves | Learned location of Mines (-10) 1842 | -10/Subcaves | Shifting Twisted Machinery released Sub. Beam Cannon 2050 | -10/Subcaves | Core integrity fell below 50% 2381 | -10/Subcaves | Learned location of Zion (-7) 2381 | -10/Subcaves | Met a Zionite searching for "candidates" 2736 | -10/Subcaves | Learned Materials stockpile data 2769 | -10/Subcaves | Disturbed a concealed Subdweller 3053 | -10/Subcaves | System corruption reached 10% 3434 | -10/Subcaves | Shifting Twisted Machinery released Mak. Light Armor Plating 3435 | -10/Subcaves | Shifting Twisted Machinery released Battle Rifle 3435 | -10/Subcaves | Shifting Twisted Machinery released Flamer 3435 | -10/Subcaves | Shifting Twisted Machinery released Mak. Spear 3680 | -10/Subcaves | A swath of the cavern ceiling suddenly collapsed 3712 | -10/Subcaves | Discovered new exit (range 10) 3717 | -10/Subcaves | Core integrity fell below 20% 3734 | -10/Subcaves | Destroyed by S-10 Pest with Light Assault Rifle Last Messages --------------- to cycle. 03706_ WQV